[Event "*** Titled Tuesday Blitz"]
[Site "Chess.com"]
[Date "2020.11.03"]
[Round "3"]
[White "IngOscarArdila"]
[Black "ShcufNaiRolf"]
[Result "0-1"]
[WhiteElo "2118"]
[BlackElo "2344"]
[TimeControl "180+1"]
[EndTime "10:31:41 PST"]
[Termination "ShcufNaiRolf won by resignation"]

1. d4 {[%clk 0:03:00.9]} 1... d5 {[%clk 0:02:59.4]} 2. Nf3 {[%clk 0:02:57.6]}
2... Nf6 {[%clk 0:02:58.5]} 3. g3 {[%clk 0:02:57]} 3... Bf5 {[%clk 0:02:49]} 4.
Bg2 {[%clk 0:02:57.1]} 4... c6 {[%clk 0:02:46.8]} 5. Bf4 {[%clk 0:02:53.8]} 5...
e6 {[%clk 0:02:41.3]} 6. Nbd2 {[%clk 0:02:53.3]} 6... h6 {[%clk 0:02:31.4]} 7.
O-O {[%clk 0:02:51.8]} 7... Nbd7 {[%clk 0:02:30.6]} 8. c4 {[%clk 0:02:50.4]}
8... g5 {[%clk 0:02:23.5]} 9. Be5 {[%clk 0:02:49.8]} 9... Nxe5 {[%clk
0:02:22.6]} 10. dxe5 {[%clk 0:02:49.9]} 10... Nd7 {[%clk 0:01:59.6]} 11. Nd4
{[%clk 0:02:46.1]} 11... Bh7 {[%clk 0:01:37.6]} 12. f4 {[%clk 0:02:44.9]} 12...
gxf4 {[%clk 0:01:36.5]} 13. gxf4 {[%clk 0:02:38.7]} 13... Rg8 {[%clk 0:01:36.2]}
14. Kh1 {[%clk 0:02:37.7]} 14... Qh4 {[%clk 0:01:11.6]} 15. Qe1 {[%clk
0:02:34.6]} 15... Qh5 {[%clk 0:01:02.2]} 16. Bf3 {[%clk 0:02:26.3]} 16... Qh3
{[%clk 0:01:02]} 17. Rg1 {[%clk 0:02:18.9]} 17... Rxg1+ {[%clk 0:00:43.7]} 18.
Qxg1 {[%clk 0:02:18.4]} 18... Bc5 {[%clk 0:00:39.6]} 19. e3 {[%clk 0:02:15.4]}
19... O-O-O {[%clk 0:00:28.1]} 20. Qg3 {[%clk 0:02:15]} 20... Qxg3 {[%clk
0:00:21.9]} 21. hxg3 {[%clk 0:02:15.2]} 21... Nb6 {[%clk 0:00:21.7]} 22. cxd5
{[%clk 0:02:05.8]} 22... Nxd5 {[%clk 0:00:21.1]} 23. N2b3 {[%clk 0:02:03.5]}
23... Bb6 {[%clk 0:00:20.3]} 24. Bxd5 {[%clk 0:02:02]} 24... Rxd5 {[%clk
0:00:19.9]} 25. Rc1 {[%clk 0:01:59.5]} 25... Kd7 {[%clk 0:00:19.9]} 26. Kh2
{[%clk 0:01:48.5]} 26... a6 {[%clk 0:00:20.4]} 27. Kh3 {[%clk 0:01:36.1]} 27...
c5 {[%clk 0:00:20.5]} 28. Nf3 {[%clk 0:01:29.4]} 28... Rd3 {[%clk 0:00:20.2]}
29. Rc3 {[%clk 0:01:26.6]} 29... Rxc3 {[%clk 0:00:19.1]} 30. bxc3 {[%clk
0:01:26.5]} 30... Kc6 {[%clk 0:00:17.7]} 31. g4 {[%clk 0:01:24.2]} 31... Bb1
{[%clk 0:00:17.9]} 32. Nc1 {[%clk 0:01:22.7]} 32... Ba5 {[%clk 0:00:15.1]} 33.
c4 {[%clk 0:01:14.6]} 33... Bc3 {[%clk 0:00:12.4]} 34. g5 {[%clk 0:01:08]} 34...
hxg5 {[%clk 0:00:12.5]} 35. Nxg5 {[%clk 0:01:08.3]} 35... Bb2 {[%clk 0:00:12.2]}
36. Nb3 {[%clk 0:01:07.9]} 36... Bxa2 {[%clk 0:00:09.9]} 37. Nd2 {[%clk
0:01:08.1]} 37... Bc1 {[%clk 0:00:08.6]} 38. Nde4 {[%clk 0:01:01.8]} 38... Bxc4
{[%clk 0:00:08.9]} 39. Nxf7 {[%clk 0:00:53.6]} 39... a5 {[%clk 0:00:09.4]} 40.
Nfd6 {[%clk 0:00:52.4]} 40... a4 {[%clk 0:00:08.7]} 41. Nxc4 {[%clk 0:00:52.2]}
41... b5 {[%clk 0:00:09.1]} 42. Ncd2 {[%clk 0:00:47.9]} 42... c4 {[%clk
0:00:09.7]} 43. Nxc4 {[%clk 0:00:46]} 43... bxc4 {[%clk 0:00:09.8]} 44. Kg4
{[%clk 0:00:41.7]} 44... Bxe3 {[%clk 0:00:10]} 45. Nc3 {[%clk 0:00:40.2]} 45...
a3 {[%clk 0:00:09.1]} 46. Kf3 {[%clk 0:00:39.8]} 46... Bd4 {[%clk 0:00:09.4]}
47. Na2 {[%clk 0:00:40]} 47... Bb2 {[%clk 0:00:09.8]} 48. Ke4 {[%clk 0:00:39.9]}
48... Kd7 {[%clk 0:00:10.3]} 49. Ke3 {[%clk 0:00:33.5]} 49... Kc6 {[%clk
0:00:10.3]} 50. Ke4 {[%clk 0:00:33.7]} 50... c3 {[%clk 0:00:10.7]} 51. Kd3
{[%clk 0:00:29.9]} 51... Kd5 {[%clk 0:00:11.2]} 52. Nb4+ {[%clk 0:00:28.9]}
52... Kc5 {[%clk 0:00:10.7]} 53. Na2 {[%clk 0:00:25.9]} 53... Ba1 {[%clk
0:00:10.1]} 54. Kc2 {[%clk 0:00:19.7]} 54... Kd5 {[%clk 0:00:09.2]} 55. Nb4+
{[%clk 0:00:17.9]} 55... Ke4 {[%clk 0:00:09.6]} 56. Nd3 {[%clk 0:00:13.4]} 56...
Bb2 {[%clk 0:00:08.7]} 57. f5 {[%clk 0:00:13.5]} 57... Kxf5 {[%clk 0:00:08.7]}
58. Kb3 {[%clk 0:00:11.9]} 58... Ke4 {[%clk 0:00:08.3]} 59. Kc2 {[%clk
0:00:10.2]} 59... a2 {[%clk 0:00:08]} 60. Nc5+ {[%clk 0:00:10.2]} 60... Kd5
{[%clk 0:00:07.9]} 61. Nb3 {[%clk 0:00:11.1]} 61... a1=Q {[%clk 0:00:08]} 62.
Nxa1 {[%clk 0:00:11.2]} 62... Bxa1 {[%clk 0:00:08.9]} 0-1

[Event "*** Titled Tuesday Blitz"]
[Site "Chess.com"]
[Date "2020.11.03"]
[Round "3"]
[White "wanyaland"]
[Black "vanyakuba"]
[Result "0-1"]
[WhiteElo "2272"]
[BlackElo "2516"]
[TimeControl "180+1"]
[EndTime "10:31:43 PST"]
[Termination "vanyakuba won by resignation"]

1. d4 {[%clk 0:03:00.9]} 1... d5 {[%clk 0:02:50.2]} 2. c4 {[%clk 0:03:00.7]}
2... e6 {[%clk 0:02:38.2]} 3. Nc3 {[%clk 0:03:00.5]} 3... c5 {[%clk 0:02:38.3]}
4. cxd5 {[%clk 0:02:59.2]} 4... cxd4 {[%clk 0:02:38.3]} 5. Qxd4 {[%clk
0:02:57.8]} 5... Nc6 {[%clk 0:02:38]} 6. Qd1 {[%clk 0:02:56.5]} 6... exd5 {[%clk
0:02:38.2]} 7. Qxd5 {[%clk 0:02:55.1]} 7... Be6 {[%clk 0:02:38.4]} 8. Qb5 {[%clk
0:02:53.7]} 8... a6 {[%clk 0:02:28]} 9. Qa4 {[%clk 0:02:43.3]} 9... b5 {[%clk
0:02:24.9]} 10. Qd1 {[%clk 0:02:43]} 10... Qxd1+ {[%clk 0:02:04.4]} 11. Kxd1
{[%clk 0:02:38.4]} 11... O-O-O+ {[%clk 0:02:03.7]} 12. Bd2 {[%clk 0:02:38.2]}
12... Nf6 {[%clk 0:01:56.5]} 13. f3 {[%clk 0:02:28.1]} 13... Bc5 {[%clk
0:01:54.1]} 14. Ke1 {[%clk 0:02:24.4]} 14... Kb7 {[%clk 0:01:38.1]} 15. Rc1
{[%clk 0:02:20.8]} 15... Bb6 {[%clk 0:01:11.8]} 16. e4 {[%clk 0:02:16.3]} 16...
Nb4 {[%clk 0:01:08.5]} 17. a3 {[%clk 0:02:13.5]} 17... Nd3+ {[%clk 0:01:08.3]}
18. Bxd3 {[%clk 0:02:13]} 18... Rxd3 {[%clk 0:01:09.2]} 19. Nge2 {[%clk
0:02:12.9]} 19... Rhd8 {[%clk 0:00:51.3]} 20. Bg5 {[%clk 0:02:11.6]} 20... h6
{[%clk 0:00:49]} 21. Bh4 {[%clk 0:02:10.7]} 21... Bc4 {[%clk 0:00:45.4]} 22.
Bxf6 {[%clk 0:01:59.2]} 22... gxf6 {[%clk 0:00:45]} 23. h4 {[%clk 0:01:58.8]}
23... Be3 {[%clk 0:00:42.9]} 24. Rd1 {[%clk 0:01:54.1]} 24... Rd2 {[%clk
0:00:39.9]} 25. Rxd2 {[%clk 0:01:22.8]} 25... Rxd2 {[%clk 0:00:39.3]} 26. b4
{[%clk 0:00:55.2]} 26... Rc2 {[%clk 0:00:38.3]} 27. Rh3 {[%clk 0:00:44.7]} 27...
Bd2+ {[%clk 0:00:33.3]} 28. Kd1 {[%clk 0:00:42.3]} 28... Bb3 {[%clk 0:00:33.4]}
29. Nd4 {[%clk 0:00:25.1]} 29... Rxc3+ {[%clk 0:00:27.4]} 30. Nxb3 {[%clk
0:00:24.4]} 30... Rxb3 {[%clk 0:00:27.5]} 31. Kxd2 {[%clk 0:00:24]} 31... Rxa3
{[%clk 0:00:27.9]} 32. Rg3 {[%clk 0:00:23.7]} 32... Rb3 {[%clk 0:00:22.7]} 33.
Rg7 {[%clk 0:00:23]} 33... Rxb4 {[%clk 0:00:21.5]} 34. Rxf7+ {[%clk 0:00:22.3]}
34... Kc8 {[%clk 0:00:19.7]} 35. Rxf6 {[%clk 0:00:22]} 35... a5 {[%clk
0:00:19.7]} 36. Rxh6 {[%clk 0:00:20]} 36... a4 {[%clk 0:00:20]} 37. Ra6 {[%clk
0:00:19.3]} 37... Rb2+ {[%clk 0:00:20.1]} 38. Ke3 {[%clk 0:00:18.7]} 38... Rxg2
{[%clk 0:00:21]} 39. h5 {[%clk 0:00:18.3]} 39... Rh2 {[%clk 0:00:19.4]} 40. h6
{[%clk 0:00:16.2]} 40... Kb7 {[%clk 0:00:19.5]} 41. Ra5 {[%clk 0:00:15.3]} 41...
Kb6 {[%clk 0:00:19.1]} 42. Ra8 {[%clk 0:00:14.9]} 42... Rxh6 {[%clk 0:00:19.1]}
43. f4 {[%clk 0:00:15.2]} 43... Rh3+ {[%clk 0:00:15]} 44. Kd4 {[%clk 0:00:15]}
44... a3 {[%clk 0:00:14.3]} 45. f5 {[%clk 0:00:15.5]} 45... b4 {[%clk
0:00:14.5]} 46. f6 {[%clk 0:00:14.5]} 46... Rf3 {[%clk 0:00:10.6]} 47. e5 {[%clk
0:00:14.4]} 47... b3 {[%clk 0:00:04.2]} 48. Rxa3 {[%clk 0:00:12.9]} 48... b2
{[%clk 0:00:04.6]} 49. Ra8 {[%clk 0:00:12.8]} 49... Kb7 {[%clk 0:00:03.6]} 50.
Ke4 {[%clk 0:00:11.2]} 50... b1=Q+ {[%clk 0:00:02.6]} 51. Kxf3 {[%clk
0:00:06.7]} 51... Kxa8 {[%clk 0:00:03]} 0-1

[Event "*** Titled Tuesday Blitz"]
[Site "Chess.com"]
[Date "2020.11.03"]
[Round "3"]
[White "Oligan22"]
[Black "Happy1712Drummer"]
[Result "1/2-1/2"]
[WhiteElo "2392"]
[BlackElo "2203"]
[TimeControl "180+1"]
[EndTime "10:31:46 PST"]
[Termination "Game drawn by repetition"]

1. e4 {[%clk 0:03:00.9]} 1... c6 {[%clk 0:02:53.7]} 2. d4 {[%clk 0:03:00.2]}
2... d5 {[%clk 0:02:54.5]} 3. e5 {[%clk 0:03:00.8]} 3... Bf5 {[%clk 0:02:51]} 4.
h4 {[%clk 0:03:00.6]} 4... h5 {[%clk 0:02:48.7]} 5. Bg5 {[%clk 0:02:51.2]} 5...
Qb6 {[%clk 0:02:46.1]} 6. Bd3 {[%clk 0:02:49.8]} 6... Bxd3 {[%clk 0:02:36.3]} 7.
Qxd3 {[%clk 0:02:49.2]} 7... e6 {[%clk 0:02:37.2]} 8. Nc3 {[%clk 0:02:40.4]}
8... Nd7 {[%clk 0:02:35.8]} 9. Nf3 {[%clk 0:02:24.4]} 9... Bb4 {[%clk
0:02:32.3]} 10. O-O {[%clk 0:02:18.5]} 10... Nh6 {[%clk 0:02:28.1]} 11. a3
{[%clk 0:01:57.2]} 11... Bf8 {[%clk 0:02:20.7]} 12. Ne2 {[%clk 0:01:50.9]} 12...
Nf5 {[%clk 0:02:18.9]} 13. c4 {[%clk 0:01:39.1]} 13... Qa6 {[%clk 0:02:17.2]}
14. Rac1 {[%clk 0:01:26.4]} 14... Nb6 {[%clk 0:02:15.8]} 15. Nd2 {[%clk
0:01:18.7]} 15... Be7 {[%clk 0:01:57.3]} 16. Bxe7 {[%clk 0:01:17.5]} 16... Nxe7
{[%clk 0:01:56.1]} 17. Qc2 {[%clk 0:01:08.4]} 17... dxc4 {[%clk 0:01:53.8]} 18.
Nxc4 {[%clk 0:01:08.1]} 18... Nxc4 {[%clk 0:01:54]} 19. Qxc4 {[%clk 0:01:09]}
19... Qxc4 {[%clk 0:01:53.7]} 20. Rxc4 {[%clk 0:01:09.9]} 20... O-O-O {[%clk
0:01:52.9]} 21. Ng3 {[%clk 0:01:00.6]} 21... g6 {[%clk 0:01:51.7]} 22. Ne4
{[%clk 0:00:59.8]} 22... Kb8 {[%clk 0:01:49.8]} 23. Nd6 {[%clk 0:00:58.5]} 23...
Rhf8 {[%clk 0:01:49.5]} 24. Rb4 {[%clk 0:00:55.8]} 24... Rd7 {[%clk 0:01:49.5]}
25. Rc1 {[%clk 0:00:48]} 25... Nf5 {[%clk 0:01:49.8]} 26. Nxf5 {[%clk
0:00:41.4]} 26... gxf5 {[%clk 0:01:48]} 27. Rxc6 {[%clk 0:00:42.1]} 27... Rfd8
{[%clk 0:01:44.8]} 28. Rcc4 {[%clk 0:00:42.2]} 28... Rd5 {[%clk 0:01:41.1]} 29.
Kf1 {[%clk 0:00:40.5]} 29... a5 {[%clk 0:01:38.2]} 30. Rb6 {[%clk 0:00:22.1]}
30... Rxd4 {[%clk 0:01:25.1]} 31. Rxd4 {[%clk 0:00:23]} 31... Rxd4 {[%clk
0:01:24.3]} 32. Rb5 {[%clk 0:00:23.7]} 32... a4 {[%clk 0:01:22]} 33. g3 {[%clk
0:00:21.2]} 33... f4 {[%clk 0:01:20.9]} 34. Ke2 {[%clk 0:00:18.2]} 34... fxg3
{[%clk 0:01:20.2]} 35. fxg3 {[%clk 0:00:19.1]} 35... Rc4 {[%clk 0:01:17.2]} 36.
Kf3 {[%clk 0:00:16.3]} 36... Kc7 {[%clk 0:01:14]} 37. Rb4 {[%clk 0:00:16.6]}
37... Rc2 {[%clk 0:01:13.5]} 38. Kf4 {[%clk 0:00:16.5]} 38... Rf2+ {[%clk
0:01:08.5]} 39. Ke3 {[%clk 0:00:14.8]} 39... Rf5 {[%clk 0:01:08.1]} 40. Ke4
{[%clk 0:00:15.3]} 40... Rf2 {[%clk 0:01:05.4]} 41. Rxa4 {[%clk 0:00:15.3]}
41... Rxb2 {[%clk 0:01:04.2]} 42. Kf3 {[%clk 0:00:15]} 42... Rb3+ {[%clk
0:01:02.5]} 43. Kf4 {[%clk 0:00:15.2]} 43... Rb2 {[%clk 0:00:49.6]} 44. Rc4+
{[%clk 0:00:15.3]} 44... Kd7 {[%clk 0:00:48.2]} 45. Rb4 {[%clk 0:00:15.5]} 45...
Ra2 {[%clk 0:00:28.4]} 46. a4 {[%clk 0:00:14.9]} 46... Ke8 {[%clk 0:00:28.8]}
47. Kg5 {[%clk 0:00:14.2]} 47... Ra3 {[%clk 0:00:26.8]} 48. Kxh5 {[%clk
0:00:14.3]} 48... Rxg3 {[%clk 0:00:23.1]} 49. Rxb7 {[%clk 0:00:14.8]} 49... Ra3
{[%clk 0:00:21]} 50. Ra7 {[%clk 0:00:14.9]} 50... Kf8 {[%clk 0:00:19.7]} 51. Kg5
{[%clk 0:00:14.2]} 51... Rg3+ {[%clk 0:00:17.8]} 52. Kf4 {[%clk 0:00:14.2]}
52... Rh3 {[%clk 0:00:17.1]} 53. Kg4 {[%clk 0:00:14.2]} 53... Re3 {[%clk
0:00:16.3]} 54. Kf4 {[%clk 0:00:14.2]} 54... Rh3 {[%clk 0:00:15.7]} 55. Kg5
{[%clk 0:00:14.6]} 55... Re3 {[%clk 0:00:15.5]} 56. Kf6 {[%clk 0:00:15.1]} 56...
Rf3+ {[%clk 0:00:15.6]} 57. Kg5 {[%clk 0:00:15.4]} 57... Rf5+ {[%clk 0:00:15.3]}
58. Kg4 {[%clk 0:00:15.1]} 58... Rxe5 {[%clk 0:00:16.2]} 59. a5 {[%clk
0:00:15.7]} 59... Kg7 {[%clk 0:00:16.1]} 60. a6 {[%clk 0:00:15.5]} 60... Ra5
{[%clk 0:00:16.4]} 61. Kf4 {[%clk 0:00:15.6]} 61... Ra4+ {[%clk 0:00:16.1]} 62.
Kg3 {[%clk 0:00:15.3]} 62... Kg6 {[%clk 0:00:14.9]} 63. Kh3 {[%clk 0:00:15.3]}
63... f6 {[%clk 0:00:14.7]} 64. Kg3 {[%clk 0:00:15.4]} 64... Ra3+ {[%clk
0:00:14.4]} 65. Kg4 {[%clk 0:00:15.1]} 65... Ra4+ {[%clk 0:00:13.6]} 66. Kg3
{[%clk 0:00:15.4]} 66... Ra3+ {[%clk 0:00:14.1]} 67. Kg4 {[%clk 0:00:15.8]}
67... Ra4+ {[%clk 0:00:14.3]} 68. Kg3 {[%clk 0:00:16.3]} 1/2-1/2

[Event "*** Titled Tuesday Blitz"]
[Site "Chess.com"]
[Date "2020.11.03"]
[Round "3"]
[White "MPGM"]
[Black "martynkovaelena"]
[Result "1-0"]
[WhiteElo "2453"]
[BlackElo "2278"]
[TimeControl "180+1"]
[EndTime "10:31:48 PST"]
[Termination "MPGM won on time"]

1. d4 {[%clk 0:03:00.9]} 1... Nf6 {[%clk 0:02:59.1]} 2. c4 {[%clk 0:03:00.1]}
2... g6 {[%clk 0:02:59.3]} 3. Nc3 {[%clk 0:02:59.6]} 3... Bg7 {[%clk 0:02:59.6]}
4. e4 {[%clk 0:02:59.2]} 4... d6 {[%clk 0:02:59]} 5. h3 {[%clk 0:02:58.2]} 5...
O-O {[%clk 0:02:58.9]} 6. Be3 {[%clk 0:02:57.4]} 6... e5 {[%clk 0:02:57.2]} 7.
d5 {[%clk 0:02:54.2]} 7... a5 {[%clk 0:02:56.9]} 8. g4 {[%clk 0:02:53.3]} 8...
Na6 {[%clk 0:02:56.7]} 9. Nge2 {[%clk 0:02:53.1]} 9... Nc5 {[%clk 0:02:56]} 10.
Ng3 {[%clk 0:02:53.8]} 10... c6 {[%clk 0:02:52.3]} 11. Be2 {[%clk 0:02:52.5]}
11... cxd5 {[%clk 0:02:50.9]} 12. cxd5 {[%clk 0:02:48.7]} 12... a4 {[%clk
0:02:50.8]} 13. Qd2 {[%clk 0:02:41.9]} 13... Qa5 {[%clk 0:02:48.9]} 14. g5
{[%clk 0:02:26.3]} 14... Ne8 {[%clk 0:02:37.4]} 15. h4 {[%clk 0:02:26.7]} 15...
Nc7 {[%clk 0:02:20.1]} 16. h5 {[%clk 0:02:24.4]} 16... b5 {[%clk 0:02:19.5]} 17.
Rc1 {[%clk 0:02:08.7]} 17... b4 {[%clk 0:02:14.6]} 18. Nb1 {[%clk 0:02:06.1]}
18... Ba6 {[%clk 0:02:10.9]} 19. Kf1 {[%clk 0:02:01.8]} 19... Bxe2+ {[%clk
0:02:06.7]} 20. Qxe2 {[%clk 0:02:02.7]} 20... Nb5 {[%clk 0:02:00.9]} 21. Nd2
{[%clk 0:01:56.6]} 21... Nd4 {[%clk 0:01:58.7]} 22. Bxd4 {[%clk 0:01:50.9]}
22... exd4 {[%clk 0:01:58.8]} 23. Nc4 {[%clk 0:01:51.6]} 23... Qa6 {[%clk
0:01:56]} 24. Kg2 {[%clk 0:01:45.8]} 24... Rae8 {[%clk 0:01:50]} 25. f3 {[%clk
0:01:27.4]} 25... f6 {[%clk 0:01:09.1]} 26. hxg6 {[%clk 0:01:23.3]} 26... hxg6
{[%clk 0:01:08.7]} 27. gxf6 {[%clk 0:01:23.5]} 27... Rxf6 {[%clk 0:01:07.7]} 28.
Qd2 {[%clk 0:00:45.3]} 28... b3 {[%clk 0:00:51.8]} 29. a3 {[%clk 0:00:40.4]}
29... Qc8 {[%clk 0:00:44.4]} 30. Qg5 {[%clk 0:00:35.6]} 30... Qd8 {[%clk
0:00:41.1]} 31. Qh4 {[%clk 0:00:34.6]} 31... Nd3 {[%clk 0:00:29.7]} 32. Rcd1
{[%clk 0:00:29.7]} 32... Nf4+ {[%clk 0:00:28.8]} 33. Kf2 {[%clk 0:00:29.5]}
33... Ref8 {[%clk 0:00:24.4]} 34. e5 {[%clk 0:00:20]} 34... dxe5 {[%clk
0:00:23]} 35. Nxe5 {[%clk 0:00:17.4]} 35... Nh5 {[%clk 0:00:20.2]} 36. Nxh5
{[%clk 0:00:16.8]} 36... gxh5 {[%clk 0:00:20.4]} 37. Qxh5 {[%clk 0:00:17.7]}
37... Rh6 {[%clk 0:00:20.5]} 38. Qg4 {[%clk 0:00:16.7]} 38... Qf6 {[%clk
0:00:18.6]} 39. Nd7 {[%clk 0:00:14.2]} 39... Qf4 {[%clk 0:00:16.8]} 40. Nxf8
{[%clk 0:00:09.3]} 40... Qe3+ {[%clk 0:00:16.7]} 41. Kg3 {[%clk 0:00:09.3]}
41... Qe5+ {[%clk 0:00:16.2]} 42. f4 {[%clk 0:00:07.9]} 42... Qe3+ {[%clk
0:00:15.3]} 43. Qf3 {[%clk 0:00:08.3]} 43... Kxf8 {[%clk 0:00:10.4]} 44. Rxh6
{[%clk 0:00:06.5]} 44... Bxh6 {[%clk 0:00:08.4]} 45. Qxe3 {[%clk 0:00:06.5]}
45... dxe3 {[%clk 0:00:08.5]} 46. Kf3 {[%clk 0:00:07]} 46... Bg7 {[%clk
0:00:07.7]} 47. Rb1 {[%clk 0:00:05.7]} 47... Bd4 {[%clk 0:00:07.5]} 48. Ke4
{[%clk 0:00:06.3]} 48... Bc5 {[%clk 0:00:07.4]} 49. Re1 {[%clk 0:00:06]} 49...
Ke7 {[%clk 0:00:07.4]} 50. Rxe3 {[%clk 0:00:05.9]} 50... Kd6 {[%clk 0:00:06.5]}
51. Re1 {[%clk 0:00:05.3]} 51... Bf2 {[%clk 0:00:04.9]} 52. Re2 {[%clk
0:00:05.4]} 52... Bh4 {[%clk 0:00:04.5]} 53. f5 {[%clk 0:00:05.8]} 53... Bf6
{[%clk 0:00:04.4]} 54. Rg2 {[%clk 0:00:06.1]} 54... Kc5 {[%clk 0:00:04.6]} 55.
Rg1 {[%clk 0:00:04.2]} 55... Bh8 {[%clk 0:00:02.2]} 56. Rg2 {[%clk 0:00:04]}
56... Bf6 {[%clk 0:00:02.2]} 57. Rd2 {[%clk 0:00:04.1]} 57... Bg7 {[%clk
0:00:01.5]} 58. d6 {[%clk 0:00:04.5]} 1-0

[Event "*** Titled Tuesday Blitz"]
[Site "Chess.com"]
[Date "2020.11.03"]
[Round "3"]
[White "guillembaches"]
[Black "anon569"]
[Result "0-1"]
[WhiteElo "2385"]
[BlackElo "2250"]
[TimeControl "180+1"]
[EndTime "10:31:49 PST"]
[Termination "anon569 won on time"]

1. e4 {[%clk 0:03:00.9]} 1... c5 {[%clk 0:02:59.5]} 2. Nf3 {[%clk 0:03:01.1]}
2... d6 {[%clk 0:02:59.6]} 3. d4 {[%clk 0:03:00]} 3... cxd4 {[%clk 0:02:59.9]}
4. Qxd4 {[%clk 0:03:00.9]} 4... a6 {[%clk 0:02:59.1]} 5. c4 {[%clk 0:03:00.6]}
5... Nc6 {[%clk 0:02:58.7]} 6. Qe3 {[%clk 0:03:00.9]} 6... g6 {[%clk 0:02:55.9]}
7. Nc3 {[%clk 0:03:00.8]} 7... Bg7 {[%clk 0:02:55.4]} 8. Be2 {[%clk 0:03:01.2]}
8... Nf6 {[%clk 0:02:55.5]} 9. h3 {[%clk 0:03:01.2]} 9... O-O {[%clk 0:02:50.4]}
10. O-O {[%clk 0:03:01.4]} 10... Nd7 {[%clk 0:02:38.4]} 11. Rd1 {[%clk
0:03:00.1]} 11... Nc5 {[%clk 0:02:25]} 12. Bd2 {[%clk 0:02:41.1]} 12... Bd7
{[%clk 0:02:18]} 13. Rac1 {[%clk 0:02:40.8]} 13... Rc8 {[%clk 0:02:16.8]} 14. b3
{[%clk 0:02:38.1]} 14... e6 {[%clk 0:01:57.3]} 15. Be1 {[%clk 0:02:32.4]} 15...
Qe7 {[%clk 0:01:55.7]} 16. Qg5 {[%clk 0:02:23.1]} 16... Bf6 {[%clk 0:01:15.9]}
17. Qe3 {[%clk 0:02:11.4]} 17... Rfd8 {[%clk 0:01:10.9]} 18. Bf1 {[%clk
0:01:50.8]} 18... Bg7 {[%clk 0:00:55.9]} 19. Rc2 {[%clk 0:01:41]} 19... Be8
{[%clk 0:00:32.3]} 20. g3 {[%clk 0:01:38.2]} 20... Qf8 {[%clk 0:00:23.1]} 21. h4
{[%clk 0:01:33.7]} 21... h5 {[%clk 0:00:20.5]} 22. Bg2 {[%clk 0:01:30.8]} 22...
Qe7 {[%clk 0:00:19.8]} 23. Qe2 {[%clk 0:01:29.3]} 23... Nb4 {[%clk 0:00:14.2]}
24. Rcc1 {[%clk 0:01:25.7]} 24... Nc6 {[%clk 0:00:14.2]} 25. Bd2 {[%clk
0:01:25.2]} 25... Nd4 {[%clk 0:00:12.7]} 26. Nxd4 {[%clk 0:01:22.5]} 26... Bxd4
{[%clk 0:00:13.1]} 27. Bg5 {[%clk 0:01:19.5]} 27... Bf6 {[%clk 0:00:13.1]} 28.
Bf4 {[%clk 0:01:16.3]} 28... Bc6 {[%clk 0:00:12]} 29. b4 {[%clk 0:01:10.4]}
29... Na4 {[%clk 0:00:11.1]} 30. Nxa4 {[%clk 0:01:06.5]} 30... Bxa4 {[%clk
0:00:12]} 31. Rd2 {[%clk 0:01:02.8]} 31... b5 {[%clk 0:00:10.9]} 32. c5 {[%clk
0:00:51.3]} 32... dxc5 {[%clk 0:00:10.5]} 33. Rxd8+ {[%clk 0:00:50.8]} 33...
Qxd8 {[%clk 0:00:10]} 34. bxc5 {[%clk 0:00:50.9]} 34... Bd4 {[%clk 0:00:10.1]}
35. c6 {[%clk 0:00:47.3]} 35... e5 {[%clk 0:00:10.3]} 36. Bg5 {[%clk 0:00:45.6]}
36... Qb6 {[%clk 0:00:10.5]} 37. Qd2 {[%clk 0:00:28.3]} 37... Rxc6 {[%clk
0:00:10]} 38. Rxc6 {[%clk 0:00:28.4]} 38... Qxc6 {[%clk 0:00:10.5]} 39. Bh3
{[%clk 0:00:24.5]} 39... Kg7 {[%clk 0:00:06.8]} 40. Qe2 {[%clk 0:00:21.9]} 40...
Qc2 {[%clk 0:00:06.2]} 41. Qf3 {[%clk 0:00:20.7]} 41... Qd1+ {[%clk 0:00:05.6]}
42. Qxd1 {[%clk 0:00:19.2]} 42... Bxd1 {[%clk 0:00:06.1]} 43. Bc8 {[%clk
0:00:17.5]} 43... a5 {[%clk 0:00:05.5]} 44. Bd8 {[%clk 0:00:18]} 44... Bc3
{[%clk 0:00:05]} 45. Bd7 {[%clk 0:00:12.7]} 45... Be2 {[%clk 0:00:04.7]} 46. Bb6
{[%clk 0:00:11.4]} 46... a4 {[%clk 0:00:04.9]} 47. f4 {[%clk 0:00:11.6]} 47...
a3 {[%clk 0:00:04.4]} 48. Kf2 {[%clk 0:00:11.5]} 48... Bc4 {[%clk 0:00:03.7]}
49. Ke3 {[%clk 0:00:11.4]} 49... b4 {[%clk 0:00:04.2]} 50. Ba4 {[%clk
0:00:10.6]} 50... Bxa2 {[%clk 0:00:04.5]} 51. Bc7 {[%clk 0:00:09.7]} 51... b3
{[%clk 0:00:04.8]} 52. fxe5 {[%clk 0:00:10.2]} 52... b2 {[%clk 0:00:05.2]} 53.
e6 {[%clk 0:00:10.5]} 53... fxe6 {[%clk 0:00:04.2]} 54. Be5+ {[%clk 0:00:10.1]}
54... Bxe5 {[%clk 0:00:03.7]} 0-1